[Event "Masterklassen 2025"]
[Site "Uppsala, Sweden"]
[Date "2025.07.05"]
[Round "8.12"]
[White "Schriever-Abeln, Marius"]
[Black "Ostensson, Julia"]
[Result "1/2-1/2"]
[TimeControl "90 min for 40 move + 30 min with an increment of 30 sec starting move 1"]
[WhiteFideId "1752650"]
[BlackFideId "1747703"]
[WhiteElo "2052"]
[BlackElo "2005"]

1. Nf3 {[%clk 01:30:55]} {[%emt 00:00:04]} Nf6 {[%clk 01:30:54]} {[%emt
00:00:07]} 2. g3 {[%clk 01:31:16]} {[%emt 00:00:09]} g6 {[%clk 01:31:20]}
{[%emt 00:00:04]} 3. Bg2 {[%clk 01:31:38]} {[%emt 00:00:08]} Bg7 {[%clk
01:31:39]} {[%emt 00:00:11]} 4. O-O {[%clk 01:31:52]} {[%emt 00:00:16]} c5
{[%clk 01:32:04]} {[%emt 00:00:05]} 5. d3 {[%clk 01:29:46]} {[%emt 00:02:36]}
O-O {[%clk 01:32:19]} {[%emt 00:00:16]} 6. Nbd2 {[%clk 01:28:51]} {[%emt
00:01:24]} Nc6 {[%clk 01:29:44]} {[%emt 00:03:05]} 7. e4 {[%clk 01:28:33]}
{[%emt 00:00:49]} d6 {[%clk 01:30:09]} {[%emt 00:00:05]} 8. c3 {[%clk
01:27:02]} {[%emt 00:02:01]} e5 {[%clk 01:22:26]} {[%emt 00:08:12]} 9. a4
{[%clk 01:23:20]} {[%emt 00:04:12]} h6 {[%clk 01:12:29]} {[%emt 00:10:27]} 10.
Nc4 {[%clk 01:17:38]} {[%emt 00:06:12]} Be6 {[%clk 01:12:27]} {[%emt 00:00:32]}
11. Qe2 {[%clk 01:09:31]} {[%emt 00:08:38]} Re8 {[%clk 01:10:37]} {[%emt
00:02:19]} 12. Ne3 {[%clk 00:58:00]} {[%emt 00:12:01]} a6 {[%clk 00:40:26]}
{[%emt 00:30:42]} 13. Ne1 {[%clk 00:47:57]} {[%emt 00:10:33]} d5 {[%clk
00:39:09]} {[%emt 00:01:46]} 14. exd5 {[%clk 00:43:46]} {[%emt 00:04:41]} Nxd5
{[%clk 00:39:33]} {[%emt 00:00:05]} 15. N1c2 {[%clk 00:38:08]} {[%emt
00:06:09]} Qd7 {[%clk 00:34:06]} {[%emt 00:05:57]} 16. Rd1 {[%clk 00:26:48]}
{[%emt 00:11:50]} Rad8 {[%clk 00:34:03]} {[%emt 00:00:33]} 17. Nxd5 {[%clk
00:18:20]} {[%emt 00:08:58]} Bxd5 {[%clk 00:34:27]} {[%emt 00:00:06]} 18. Bxd5
{[%clk 00:17:02]} {[%emt 00:01:48]} Qxd5 {[%clk 00:34:52]} {[%emt 00:00:06]} 19.
Ne3 {[%clk 00:17:15]} {[%emt 00:00:16]} Qe6 {[%clk 00:33:30]} {[%emt 00:01:51]}
20. Ng2 {[%clk 00:12:50]} {[%emt 00:04:56]} Na5 {[%clk 00:18:52]} {[%emt
00:15:08]} 21. Be3 {[%clk 00:10:53]} {[%emt 00:02:27]} Nb3 {[%clk 00:17:45]}
{[%emt 00:01:38]} 22. Ra3 {[%clk 00:10:14]} {[%emt 00:01:09]} Nd4 {[%clk
00:09:14]} {[%emt 00:09:00]} 23. Bxd4 {[%clk 00:08:01]} {[%emt 00:02:43]} exd4
{[%clk 00:03:08]} {[%emt 00:06:37]} 24. Qxe6 {[%clk 00:07:41]} {[%emt
00:00:49]} Rxe6 {[%clk 00:03:26]} {[%emt 00:00:12]} 25. Rb3 {[%clk 00:06:36]}
{[%emt 00:01:36]} dxc3 {[%clk 00:02:39]} {[%emt 00:01:17]} 26. bxc3 {[%clk
00:06:49]} {[%emt 00:00:17]} c4 {[%clk 00:02:30]} {[%emt 00:00:39]} 27. Rxb7
{[%clk 00:05:58]} {[%emt 00:01:20]} cxd3 {[%clk 00:02:56]} {[%emt 00:00:04]} 28.
Nf4 {[%clk 00:05:34]} {[%emt 00:00:54]} Red6 {[%clk 00:03:23]} {[%emt
00:00:04]} 29. c4 {[%clk 00:05:36]} {[%emt 00:00:28]} d2 {[%clk 00:03:48]}
{[%emt 00:00:05]} 30. Nd5 {[%clk 00:05:19]} {[%emt 00:00:46]} Rxd5 {[%clk
00:02:15]} {[%emt 00:02:03]} 31. cxd5 {[%clk 00:05:14]} {[%emt 00:00:35]} Bc3
{[%clk 00:01:11]} {[%emt 00:01:34]} 32. Kg2 {[%clk 00:00:53]} {[%emt 00:04:51]}
Rxd5 {[%clk 00:01:10]} {[%emt 00:00:31]} 33. Rb3 {[%clk 00:00:55]} {[%emt
00:00:27]} Ba5 {[%clk 00:01:12]} {[%emt 00:00:29]} 34. Kf3 {[%clk 00:00:42]}
{[%emt 00:00:43]} Rd4 {[%clk 00:00:52]} {[%emt 00:00:49]} 35. Ra3 {[%clk
00:00:45]} {[%emt 00:00:28]} Rc4 {[%clk 00:00:32]} {[%emt 00:00:50]} 36. Ke2
{[%clk 00:00:43]} {[%emt 00:00:32]} Rc1 {[%clk 00:00:34]} {[%emt 00:00:28]} 37.
Rd3 {[%clk 00:00:34]} {[%emt 00:00:39]} Rc4 {[%clk 00:00:41]} {[%emt 00:00:23]}
38. Rd6 {[%clk 00:00:31]} {[%emt 00:00:33]} Rxa4 {[%clk 00:00:34]} {[%emt
00:00:37]} 39. Rxa6 {[%clk 00:00:37]} {[%emt 00:00:24]} Re4+ {[%clk 00:00:53]}
{[%emt 00:00:11]} 40. Kd3 {[%clk 00:00:43]} {[%emt 00:00:25]} Re1 {[%clk
00:00:59]} {[%emt 00:00:23]} 41. Kc2 {[%clk 00:28:30]} {[%emt 00:02:44]} Re5
{[%clk 00:30:49]} {[%emt 00:00:40]} 42. Ra1 {[%clk 00:24:02]} {[%emt 00:04:58]}
Rc5+ {[%clk 00:27:12]} {[%emt 00:04:06]} 43. Kd1 {[%clk 00:23:46]} {[%emt
00:00:46]} Bc3 {[%clk 00:27:13]} {[%emt 00:00:29]} 44. Rb1 {[%clk 00:21:38]}
{[%emt 00:02:39]} Re5 {[%clk 00:22:26]} {[%emt 00:05:16]} 45. Kc2 {[%clk
00:18:43]} {[%emt 00:03:26]} Ba5 {[%clk 00:21:58]} {[%emt 00:00:57]} 46. Ra8+
{[%clk 00:16:58]} {[%emt 00:02:15]} Kg7 {[%clk 00:22:20]} {[%emt 00:00:07]} 47.
Rab8 {[%clk 00:16:27]} {[%emt 00:01:02]} Re1 {[%clk 00:06:38]} {[%emt
00:16:12]} 48. R8b5 {[%clk 00:14:42]} {[%emt 00:02:15]} h5 {[%clk 00:05:34]}
{[%emt 00:01:34]} 49. h3 {[%clk 00:13:55]} {[%emt 00:01:17]} Bc3 {[%clk
00:01:57]} {[%emt 00:04:07]} 50. g4 {[%clk 00:12:19]} {[%emt 00:02:07]} hxg4
{[%clk 00:02:21]} {[%emt 00:00:05]} 51. hxg4 {[%clk 00:12:43]} {[%emt
00:00:06]} Bd4 {[%clk 00:01:02]} {[%emt 00:01:48]} 52. f3 {[%clk 00:02:24]}
{[%emt 00:10:50]} Be3 {[%clk 00:01:27]} {[%emt 00:00:05]} 53. Rd1 {[%clk
00:02:48]} {[%emt 00:00:06]} f5 {[%clk 00:00:47]} {[%emt 00:01:10]} 54. gxf5
{[%clk 00:02:15]} {[%emt 00:01:04]} g5 {[%clk 00:01:07]} {[%emt 00:00:10]} 55.
Re5 {[%clk 00:00:38]} {[%emt 00:02:07]} Kf6 {[%clk 00:01:29]} {[%emt 00:00:07]}
56. Re8 {[%clk 00:00:49]} {[%emt 00:00:19]} Kxf5 {[%clk 00:01:47]} {[%emt
00:00:12]} 57. Rf8+ {[%clk 00:00:53]} {[%emt 00:00:26]} Ke5 {[%clk 00:01:27]}
{[%emt 00:00:50]} 58. Rxd2 {[%clk 00:00:42]} {[%emt 00:00:41]} 1/2-1/2

[Event "Masterklassen 2025"]
[Site "Uppsala, Sweden"]
[Date "2025.07.05"]
[Round "8.13"]
[White "Wakeham, Daniel"]
[Black "Johansson, William"]
[Result "1/2-1/2"]
[TimeControl "90 min for 40 move + 30 min with an increment of 30 sec starting move 1"]
[WhiteFideId "1705482"]
[BlackFideId "1744070"]
[WhiteElo "2045"]
[BlackElo "2026"]

1. d4 {[%clk 01:30:53]} {[%emt 00:00:06]} Nf6 {[%clk 01:30:54]} {[%emt
00:00:07]} 2. c4 {[%clk 01:31:10]} {[%emt 00:00:12]} e6 {[%clk 01:31:20]}
{[%emt 00:00:05]} 3. Nc3 {[%clk 01:31:31]} {[%emt 00:00:08]} Bb4 {[%emt
00:00:10]} 4. Nf3 {[%clk 01:31:41]} {[%emt 00:00:15]} b6 {[%clk 01:32:05]}
{[%emt 00:00:11]} 5. Bg5 {[%clk 01:32:01]} {[%emt 00:00:09]} Bb7 {[%clk
01:31:18]} {[%emt 00:01:18]} 6. e3 {[%clk 01:32:17]} {[%emt 00:00:13]} O-O
{[%clk 01:31:31]} {[%emt 00:00:18]} 7. Rc1 {[%clk 01:31:27]} {[%emt 00:01:20]}
h6 {[%clk 01:30:32]} {[%emt 00:01:29]} 8. Bh4 {[%clk 01:31:42]} {[%emt
00:00:15]} d5 {[%clk 01:30:22]} {[%emt 00:00:40]} 9. cxd5 {[%clk 01:31:31]}
{[%emt 00:00:41]} exd5 {[%clk 01:29:38]} {[%emt 00:01:13]} 10. a3 {[%clk
01:29:51]} {[%emt 00:02:10]} Be7 {[%clk 01:29:53]} {[%emt 00:00:15]} 11. Bd3
{[%clk 01:23:20]} {[%emt 00:07:01]} Ne4 {[%clk 01:26:24]} {[%emt 00:03:59]} 12.
Bxe7 {[%clk 01:23:15]} {[%emt 00:00:35]} Qxe7 {[%clk 01:26:49]} {[%emt
00:00:05]} 13. O-O {[%clk 01:09:46]} {[%emt 00:13:59]} Rd8 {[%clk 01:11:39]}
{[%emt 00:15:40]} 14. Bb1 {[%clk 01:02:17]} {[%emt 00:07:59]} c5 {[%clk
00:54:32]} {[%emt 00:17:37]} 15. dxc5 {[%clk 00:52:50]} {[%emt 00:09:57]} bxc5
{[%clk 00:49:08]} {[%emt 00:05:54]} 16. Nxe4 {[%clk 00:51:33]} {[%emt
00:01:47]} dxe4 {[%clk 00:49:25]} {[%emt 00:00:13]} 17. Qc2 {[%clk 00:51:36]}
{[%emt 00:00:26]} Nd7 {[%clk 00:46:59]} {[%emt 00:02:57]} 18. Nd2 {[%clk
00:51:10]} {[%emt 00:00:56]} Nf6 {[%clk 00:41:01]} {[%emt 00:06:28]} 19. Rfd1
{[%clk 00:47:21]} {[%emt 00:04:20]} Rac8 {[%clk 00:41:01]} {[%emt 00:00:28]} 20.
h3 {[%clk 00:37:45]} {[%emt 00:10:07]} Rd5 {[%clk 00:37:18]} {[%emt 00:04:13]}
21. Ba2 {[%clk 00:34:10]} {[%emt 00:04:04]} Rg5 {[%clk 00:36:02]} {[%emt
00:01:47]} 22. Nc4 {[%clk 00:32:40]} {[%emt 00:02:00]} Bd5 {[%clk 00:31:40]}
{[%emt 00:04:52]} 23. Rd2 {[%clk 00:26:35]} {[%emt 00:06:35]} Qe6 {[%clk
00:31:10]} {[%emt 00:01:01]} 24. Kh1 {[%clk 00:25:02]} {[%emt 00:02:02]} Rh5
{[%clk 00:19:29]} {[%emt 00:12:11]} 25. Kg1 {[%clk 00:17:19]} {[%emt 00:08:13]}
g5 {[%clk 00:17:06]} {[%emt 00:02:53]} 26. Rxd5 {[%clk 00:10:39]} {[%emt
00:07:10]} Nxd5 {[%clk 00:16:14]} {[%emt 00:01:22]} 27. Nd2 {[%clk 00:10:27]}
{[%emt 00:00:42]} Re8 {[%clk 00:07:58]} {[%emt 00:08:47]} 28. Nxe4 {[%clk
00:06:40]} {[%emt 00:04:17]} Qxe4 {[%clk 00:05:41]} {[%emt 00:02:46]} 29. Qxe4
{[%clk 00:06:11]} {[%emt 00:00:59]} Rxe4 {[%clk 00:06:04]} {[%emt 00:00:06]} 30.
Bxd5 {[%clk 00:06:38]} {[%emt 00:00:04]} Re5 {[%clk 00:06:18]} {[%emt
00:00:15]} 31. Rxc5 {[%clk 00:06:11]} {[%emt 00:00:58]} Kg7 {[%clk 00:04:18]}
{[%emt 00:02:31]} 32. e4 {[%clk 00:06:17]} {[%emt 00:00:24]} Re7 {[%clk
00:02:23]} {[%emt 00:02:24]} 33. b4 {[%clk 00:04:09]} {[%emt 00:02:38]} Rh4
{[%clk 00:01:48]} {[%emt 00:01:04]} 34. g3 {[%clk 00:03:28]} {[%emt 00:01:12]}
Rxh3 {[%clk 00:02:03]} {[%emt 00:00:15]} 35. b5 {[%clk 00:03:56]} {[%emt
00:00:02]} g4 {[%clk 00:00:35]} {[%emt 00:01:58]} 36. Bc6 {[%clk 00:03:53]}
{[%emt 00:00:33]} h5 {[%clk 00:00:33]} {[%emt 00:00:33]} 37. a4 {[%clk
00:03:56]} {[%emt 00:00:27]} h4 {[%clk 00:00:45]} {[%emt 00:00:17]} 38. Rg5+
{[%clk 00:04:15]} {[%emt 00:00:11]} Kh6 {[%clk 00:01:05]} {[%emt 00:00:10]} 39.
Rxg4 {[%clk 00:04:14]} {[%emt 00:00:31]} hxg3 {[%clk 00:01:24]} {[%emt
00:00:11]} 40. fxg3 {[%clk 00:03:46]} {[%emt 00:00:57]} Rh5 {[%clk 00:01:12]}
{[%emt 00:00:42]} 41. Rh4 {[%clk 00:19:16]} {[%emt 00:15:01]} Rxh4 {[%clk
00:29:51]} {[%emt 00:01:52]} 42. gxh4 {[%clk 00:19:44]} {[%emt 00:00:01]} Kh5
{[%clk 00:22:16]} {[%emt 00:08:04]} 43. a5 {[%clk 00:18:36]} {[%emt 00:01:39]}
Re5 {[%clk 00:18:54]} {[%emt 00:03:52]} 44. Bd5 {[%clk 00:14:17]} {[%emt
00:04:49]} Kxh4 {[%clk 00:11:52]} {[%emt 00:07:32]} 45. a6 {[%clk 00:05:56]}
{[%emt 00:08:51]} Kg3 {[%clk 00:10:03]} {[%emt 00:02:19]} 46. b6 {[%clk
00:05:03]} {[%emt 00:01:24]} axb6 {[%clk 00:10:19]} {[%emt 00:00:14]} 47. a7
{[%clk 00:05:26]} {[%emt 00:00:06]} Re8 {[%clk 00:10:36]} {[%emt 00:00:13]} 48.
a8=Q {[%clk 00:03:07]} {[%emt 00:02:51]} Rxa8 {[%clk 00:10:53]} {[%emt
00:00:11]} 49. Bxa8 {[%clk 00:03:35]} {[%emt 00:00:02]} Kf4 {[%clk 00:10:43]}
{[%emt 00:00:40]} 50. Bd5 {[%clk 00:03:26]} {[%emt 00:00:39]} f5 {[%clk
00:10:22]} {[%emt 00:00:51]} 51. exf5 {[%clk 00:03:44]} {[%emt 00:00:11]}
1/2-1/2

[Event "Masterklassen 2025"]
[Site "Uppsala, Sweden"]
[Date "2025.07.05"]
[Round "8.14"]
[White "Malm, Simon"]
[Black "Jaderberg, Bjorn"]
[Result "1-0"]
[TimeControl "90 min for 40 move + 30 min with an increment of 30 sec starting move 1"]
[WhiteFideId "1759825"]
[BlackFideId "1712403"]
[WhiteElo "2007"]
[BlackElo "2112"]

1. d4 {[%clk 01:30:57]} {[%emt 00:00:02]} e6 {[%clk 01:30:52]} {[%emt
00:00:10]} 2. c4 {[%clk 01:31:14]} {[%emt 00:00:12]} b6 {[%clk 01:31:04]}
{[%emt 00:00:18]} 3. a3 {[%clk 01:31:35]} {[%emt 00:00:09]} f5 {[%clk
01:31:11]} {[%emt 00:00:23]} 4. Nc3 {[%clk 01:31:57]} {[%emt 00:00:08]} Nf6
{[%clk 01:31:26]} {[%emt 00:00:16]} 5. g3 {[%clk 01:28:24]} {[%emt 00:04:02]}
Bb7 {[%clk 01:31:36]} {[%emt 00:00:20]} 6. d5 {[%clk 01:28:04]} {[%emt
00:00:50]} Be7 {[%clk 01:31:00]} {[%emt 00:01:05]} 7. Bg2 {[%clk 01:27:15]}
{[%emt 00:01:19]} O-O {[%clk 01:30:57]} {[%emt 00:00:33]} 8. Nh3 {[%clk
01:24:23]} {[%emt 00:03:23]} a5 {[%clk 01:23:00]} {[%emt 00:08:27]} 9. O-O
{[%clk 01:23:06]} {[%emt 00:01:47]} Qc8 {[%clk 01:23:02]} {[%emt 00:00:28]} 10.
e4 {[%clk 01:15:41]} {[%emt 00:07:54]} fxe4 {[%clk 01:18:20]} {[%emt 00:05:12]}
11. Nxe4 {[%clk 01:15:24]} {[%emt 00:00:47]} exd5 {[%clk 01:04:08]} {[%emt
00:14:43]} 12. Nxf6+ {[%clk 01:14:30]} {[%emt 00:01:24]} Bxf6 {[%clk 01:04:28]}
{[%emt 00:00:10]} 13. Bxd5+ {[%clk 01:14:46]} {[%emt 00:00:14]} Kh8 {[%clk
01:04:49]} {[%emt 00:00:09]} 14. Ng5 {[%clk 01:11:28]} {[%emt 00:03:48]} Bxd5
{[%clk 01:02:27]} {[%emt 00:02:52]} 15. Qxd5 {[%clk 01:08:43]} {[%emt
00:03:14]} Nc6 {[%clk 01:02:45]} {[%emt 00:00:13]} 16. Nf7+ {[%clk 01:02:50]}
{[%emt 00:06:23]} Rxf7 {[%clk 01:02:46]} {[%emt 00:00:28]} 17. Qxf7 {[%clk
01:03:18]} {[%emt 00:00:02]} Ne5 {[%clk 00:50:42]} {[%emt 00:12:34]} 18. Qd5
{[%clk 01:03:31]} {[%emt 00:00:18]} c6 {[%clk 00:50:51]} {[%emt 00:00:20]} 19.
Qe4 {[%clk 01:03:30]} {[%emt 00:00:30]} Qg8 {[%clk 00:51:02]} {[%emt 00:00:20]}
20. Bg5 {[%clk 00:42:54]} {[%emt 00:21:07]} Qxc4 {[%clk 00:36:12]} {[%emt
00:15:20]} 21. Qxc4 {[%clk 00:42:52]} {[%emt 00:00:32]} Nxc4 {[%clk 00:36:30]}
{[%emt 00:00:12]} 22. Bxf6 {[%clk 00:43:16]} {[%emt 00:00:06]} gxf6 {[%clk
00:36:52]} {[%emt 00:00:07]} 23. b3 {[%clk 00:41:45]} {[%emt 00:02:02]} Ne5
{[%clk 00:36:56]} {[%emt 00:00:26]} 24. f4 {[%clk 00:40:47]} {[%emt 00:01:27]}
Ng6 {[%clk 00:36:22]} {[%emt 00:01:05]} 25. Rfe1 {[%clk 00:37:43]} {[%emt
00:03:34]} Kg8 {[%clk 00:35:41]} {[%emt 00:01:10]} 26. Rad1 {[%clk 00:37:22]}
{[%emt 00:00:52]} Ra7 {[%clk 00:35:11]} {[%emt 00:01:00]} 27. Re8+ {[%clk
00:29:42]} {[%emt 00:08:10]} Kf7 {[%clk 00:35:28]} {[%emt 00:00:13]} 28. Rb8
{[%clk 00:29:57]} {[%emt 00:00:15]} b5 {[%clk 00:34:57]} {[%emt 00:01:00]} 29.
Kf2 {[%clk 00:29:32]} {[%emt 00:00:55]} Ne7 {[%clk 00:29:42]} {[%emt 00:05:45]}
30. Ke3 {[%clk 00:28:27]} {[%emt 00:01:35]} a4 {[%clk 00:27:38]} {[%emt
00:02:34]} 31. b4 {[%clk 00:28:28]} {[%emt 00:00:30]} Rc7 {[%clk 00:23:55]}
{[%emt 00:04:12]} 32. g4 {[%clk 00:25:58]} {[%emt 00:03:01]} Nd5+ {[%clk
00:23:55]} {[%emt 00:00:30]} 33. Kf3 {[%clk 00:19:52]} {[%emt 00:06:35]} d6
{[%clk 00:23:28]} {[%emt 00:00:57]} 34. Rd3 {[%clk 00:20:09]} {[%emt 00:00:13]}
Rd7 {[%clk 00:23:20]} {[%emt 00:00:39]} 35. Rxd5 {[%clk 00:18:03]} {[%emt
00:02:36]} cxd5 {[%clk 00:23:42]} {[%emt 00:00:07]} 36. Rxb5 {[%clk 00:18:23]}
{[%emt 00:00:11]} Rc7 {[%clk 00:23:56]} {[%emt 00:00:17]} 37. Rxd5 {[%clk
00:18:22]} {[%emt 00:00:30]} Rc3+ {[%clk 00:24:12]} {[%emt 00:00:14]} 38. Ke4
{[%clk 00:18:37]} {[%emt 00:00:15]} Rxa3 {[%clk 00:24:08]} {[%emt 00:00:34]} 39.
Rxd6 {[%clk 00:18:51]} {[%emt 00:00:16]} Rb3 {[%clk 00:24:10]} {[%emt
00:00:28]} 40. Kf5 {[%clk 00:18:01]} {[%emt 00:01:19]} Rxb4 {[%clk 00:23:07]}
{[%emt 00:01:33]} 41. Rxf6+ {[%clk 00:15:55]} {[%emt 00:02:37]} Kg7 {[%clk
00:21:38]} {[%emt 00:01:59]} 42. Ra6 {[%clk 00:09:38]} {[%emt 00:06:47]} Rb5+
{[%clk 00:21:48]} {[%emt 00:00:19]} 43. Ke6 {[%clk 00:09:57]} {[%emt 00:00:10]}
Rb4 {[%clk 00:22:08]} {[%emt 00:00:11]} 44. Ra7+ {[%clk 00:10:16]} {[%emt
00:00:12]} Kh6 {[%clk 00:21:37]} {[%emt 00:01:01]} 45. g5 {[%clk 00:09:15]}
{[%emt 00:01:31]} Kg6 {[%clk 00:21:38]} {[%emt 00:00:28]} 46. Ke5 {[%clk
00:09:32]} {[%emt 00:00:13]} Rb5+ {[%clk 00:20:39]} {[%emt 00:01:30]} 47. Ke4
{[%clk 00:09:43]} {[%emt 00:00:18]} Rb4+ {[%clk 00:14:58]} {[%emt 00:06:11]} 48.
Kf3 {[%clk 00:08:43]} {[%emt 00:01:30]} Rb3+ {[%clk 00:13:01]} {[%emt
00:02:27]} 49. Kg4 {[%clk 00:08:22]} {[%emt 00:00:52]} h5+ {[%clk 00:13:08]}
{[%emt 00:00:22]} 50. gxh6 {[%clk 00:08:26]} {[%emt 00:00:27]} Kxh6 {[%clk
00:13:23]} {[%emt 00:00:15]} 51. Rxa4 {[%clk 00:08:46]} {[%emt 00:00:10]} Rb5
{[%clk 00:12:18]} {[%emt 00:01:34]} 52. Ra6+ {[%clk 00:09:00]} {[%emt
00:00:16]} Kg7 {[%clk 00:12:39]} {[%emt 00:00:09]} 53. h4 {[%clk 00:09:01]}
{[%emt 00:00:30]} Rc5 {[%clk 00:11:35]} {[%emt 00:01:33]} 54. Re6 {[%clk
00:29:30]} {[%emt 00:10:01]} Kf7 {[%clk 00:41:36]} {[%emt 00:00:30]} 55. Re5
{[%clk 00:28:39]} {[%emt 00:01:21]} Rc1 {[%clk 00:42:01]} {[%emt 00:00:06]} 56.
Re3 {[%clk 00:23:49]} {[%emt 00:05:19]} Rc5 {[%clk 00:41:28]} {[%emt 00:01:02]}
57. h5 {[%clk 00:23:30]} {[%emt 00:00:50]} Kf6 {[%clk 00:39:28]} {[%emt
00:02:30]} 58. Ra3 {[%clk 00:22:49]} {[%emt 00:01:10]} Kg7 {[%clk 00:38:19]}
{[%emt 00:01:40]} 59. Ra7+ {[%clk 00:22:59]} {[%emt 00:00:20]} Kh6 {[%clk
00:38:27]} {[%emt 00:00:21]} 60. Ra6+ {[%clk 00:23:16]} {[%emt 00:00:14]} Kg7
{[%clk 00:38:40]} {[%emt 00:00:17]} 61. f5 {[%clk 00:20:51]} {[%emt 00:02:55]}
Rc1 {[%clk 00:38:50]} {[%emt 00:00:19]} 62. h6+ {[%clk 00:17:46]} {[%emt
00:03:36]} Kf7 {[%clk 00:31:19]} {[%emt 00:08:00]} 63. Ra3 {[%clk 00:17:25]}
{[%emt 00:00:51]} Rg1+ {[%clk 00:29:52]} {[%emt 00:01:58]} 64. Rg3 {[%clk
00:16:02]} {[%emt 00:01:53]} Ra1 {[%clk 00:29:43]} {[%emt 00:00:38]} 65. Kg5
{[%clk 00:15:33]} {[%emt 00:00:59]} Rb1 {[%clk 00:26:00]} {[%emt 00:04:13]} 66.
Rg4 {[%clk 00:15:36]} {[%emt 00:00:28]} Ra1 {[%clk 00:26:02]} {[%emt 00:00:27]}
67. h7 {[%clk 00:11:10]} {[%emt 00:04:56]} Kg7 {[%clk 00:24:08]} {[%emt
00:02:25]} 68. Rh4 {[%clk 00:11:23]} {[%emt 00:00:16]} Kh8 {[%clk 00:24:16]}
{[%emt 00:00:22]} 69. Rd4 {[%clk 00:04:06]} {[%emt 00:07:47]} Kxh7 {[%clk
00:21:33]} {[%emt 00:03:14]} 70. Kf6 {[%clk 00:03:55]} {[%emt 00:00:41]} Rf1
{[%clk 00:20:48]} {[%emt 00:01:15]} 71. Rg4 {[%clk 00:03:27]} {[%emt 00:00:57]}
Ra1 {[%clk 00:20:24]} {[%emt 00:00:54]} 72. Rg7+ {[%clk 00:03:17]} {[%emt
00:00:40]} Kh8 {[%clk 00:20:13]} {[%emt 00:00:40]} 73. Re7 {[%clk 00:02:17]}
{[%emt 00:01:31]} Rf1 {[%clk 00:17:50]} {[%emt 00:02:53]} 74. Kg6 {[%clk
00:02:26]} {[%emt 00:00:21]} Rg1+ {[%clk 00:17:45]} {[%emt 00:00:36]} 75. Kf7
{[%clk 00:02:30]} {[%emt 00:00:25]} Rg7+ {[%clk 00:16:42]} {[%emt 00:01:33]} 76.
Ke6 {[%clk 00:02:18]} {[%emt 00:00:42]} Rg1 {[%clk 00:17:02]} {[%emt 00:00:11]}
77. f6 {[%clk 00:01:53]} {[%emt 00:00:55]} Re1+ {[%clk 00:17:07]} {[%emt
00:00:25]} 78. Kf7 {[%clk 00:01:58]} {[%emt 00:00:24]} Rf1 {[%clk 00:17:17]}
{[%emt 00:00:20]} 79. Re2 {[%clk 00:01:51]} {[%emt 00:00:37]} Rh1 {[%clk
00:17:40]} {[%emt 00:00:07]} 80. Ke8 {[%clk 00:02:01]} {[%emt 00:00:21]} 1-0